Workbook

Sheet Planning Tool
A1: Summer Assignment Master Spreadsheet Faculty Summer Assignments
A2: Last Name, First Name | B2: Empl ID | C2: Position # | D2: Title | E2: Academic Year Rate (9 months) | F2: Max Summer Rate (1/3)
A3: Doe, John | B3: 600123000 | C3: 10026878 | D3: 0 Prof | E3: 90000 | F3: =E3/3 -> 30000 | G3: Contract #1 | L3: Contract #2 | Q3: Contract #3 | V3: Contract #4 | AA3: Contract Totals CK Figures
A4: Workload Description | C4: Effort for Assignment or Flat Rate | D4: Project ID/Cost Center | E4: SAMS Dates | F4: Allocation | G4: Start Date | H4: End Date | I4: Allocation | J4: Project ID/Cost Center | K4: Funding Dist% | L4: Start Date | M4: End Date | N4: Allocation | O4: Project ID/Cost Center | P4: Funding Dist% | Q4: Start Date | R4: End Date | S4: Allocation | T4: Project ID/Cost Center | U4: Funding Dist% | V4: Start Date | W4: End Date | X4: Allocation | Y4: Project ID/Cost Center | Z4: Funding Dist%
A5: BEGIN
A6: ACC 2013.02 | C6: Flat Rate | D6: EGX334 | E6: July 16 - August 31 | F6: 2700 | I6: 0 | K6: =I6/SUM($I$5:$I$11) -> 0 | L6: 2016-07-16 | M6: 2016-08-31 | N6: 2700 | O6: 100168444 | P6: =N6/SUM($N$5:$N$11) -> 0.4864864865 | S6: 0 | U6: =S6/SUM($S$5:$S$11) ->  | X6: 0 | Z6: =X6/SUM($X$5:$X$11) ->  | AA6: =I6+N6+S6+X6 -> 2700
A7: ACC 2013.01T | C7: Flat Rate | D7: EGX334 | E7: June 1- August 31 | F7: 5200 | G7: 2016-06-01 | H7: 2016-07-15 | I7: 2600 | J7: 100168444 | K7: =I7/SUM($I$5:$I$11) -> 0.5977011494 | L7: 2016-07-16 | M7: 2016-08-31 | N7: 2600 | O7: 100168444 | P7: =N7/SUM($N$5:$N$11) -> 0.4684684685 | S7: 0 | U7: =S7/SUM($S$5:$S$11) ->  | X7: 0 | Z7: =X7/SUM($X$5:$X$11) ->  | AA7: 5200
A8: Grant: Univ of Utah ABH-4043 | C8: 0.1 | D8: 3267501010 | E8: June 1 - July 15 | F8: 1500 | G8: 2016-06-01 | H8: 2016-07-15 | I8: 1500 | J8: 100388556 | K8: =I8/SUM($I$5:$I$11) -> 0.3448275862 | N8: 0 | P8: =N8/SUM($N$5:$N$11) -> 0 | S8: 0 | U8: =S8/SUM($S$5:$S$11) ->  | X8: 0 | Z8: =X8/SUM($X$5:$X$11) ->  | AA8: 1500
A9: Committee Assignment | C9: Flat Rate | D9: EGR335 | E9: June 1-August 31 | F9: 500 | G9: 2016-06-01 | H9: 2016-07-15 | I9: 250 | J9: 100188598 | K9: =I9/SUM($I$5:$I$11) -> 0.05747126437 | L9: 2016-07-16 | M9: 2016-08-31 | N9: 250 | O9: 100188598 | P9: =N9/SUM($N$5:$N$11) -> 0.04504504505 | S9: 0 | U9: =S9/SUM($S$5:$S$11) ->  | X9: 0 | Z9: =X9/SUM($X$5:$X$11) ->  | AA9: 500
K10: =I10/SUM($I$5:$I$11) -> 0 | P10: =N10/SUM($N$5:$N$11) -> 0 | S10: 0 | U10: =S10/SUM($S$5:$S$11) ->  | X10: 0 | Z10: =X10/SUM($X$5:$X$11) ->  | AA10: 0
A11: END
E12: Total Allocation | F12: =SUM(F5:F11) -> 9900 | I12: =SUM(I5:I11) -> 4350 | K12: =SUM(K5:K11) -> 1 | N12: =SUM(N5:N11) -> 5550 | P12: =SUM(P5:P11) -> 1 | S12: =SUM(S5:S11) -> 0 | U12: =SUM(U5:U11) ->  | X12: =SUM(X5:X11) -> 0 | Z12: =SUM(Z5:Z11) ->  | AA12: =SUM(AA5:AA11) -> 9900
E13: Calculated FTE | F13: =F12/F3 -> 0.33 | AA13: =AA12-F12 -> 0
A17: Last Name, First Name | B17: Empl ID | C17: Position # | D17: Title | E17: Academic Year Rate (9 months) | F17: Max Summer Rate (1/3) | G17: EFORM REQUEST ID:
F18: =E18/3 -> 0 | G18: Contract #1 | L18: Contract #2 | Q18: Contract #3 | V18: Contract #4 | AA18: Contract Totals CK Figures
A19: Workload Description | C19: Effort for Assignment or Flat Rate | D19: Project ID/Cost Center | E19: SAMS Dates | F19: Allocation | G19: Start Date | H19: End Date | I19: Allocation | J19: Project ID/Cost Center | K19: Funding Dist% | L19: Start Date | M19: End Date | N19: Allocation | O19: Project ID/Cost Center | P19: Funding Dist% | Q19: Start Date | R19: End Date | S19: Allocation | T19: Project ID/Cost Center | U19: Funding Dist% | V19: Start Date | W19: End Date | X19: Allocation | Y19: Project ID/Cost Center | Z19: Funding Dist%
K20: =I20/SUM(I20:I24) -> 
K21: =I21/SUM($I$20:$I$24) ->  | P21: =N21/SUM($N$20:$N$24) ->  | S21: 0 | U21: =S21/SUM($S$20:$S$24) ->  | X21: 0 | Z21: =X21/SUM($X$20:$X$24) ->  | AA21: =I21+N21+S21+X21 -> 0
K22: =I22/SUM($I$20:$I$24) ->  | P22: =N22/SUM($N$20:$N$24) ->  | S22: 0 | U22: =S22/SUM($S$20:$S$24) ->  | X22: 0 | Z22: =X22/SUM($X$20:$X$24) ->  | AA22: =I22+N22+S22+X22 -> 0
K23: =I23/SUM($I$20:$I$24) ->  | P23: =N23/SUM($N$20:$N$24) ->  | S23: 0 | U23: =S23/SUM($S$20:$S$24) ->  | X23: 0 | Z23: =X23/SUM($X$20:$X$24) ->  | AA23: 0
A24: END
A25: Monthly Salary Rate (reference for T/TT appointments) | E25: Total Allocation | F25: =SUM(F20:F24) -> 0 | I25: =SUM(I20:I24) -> 0 | K25: =SUM(K20:K24) ->  | N25: =SUM(N20:N24) -> 0 | P25: =SUM(P20:P24) ->  | S25: =SUM(S20:S24) -> 0 | U25: =SUM(U20:U24) ->  | X25: =SUM(X20:X24) -> 0 | Z25: =SUM(Z20:Z24) ->  | AA25: =SUM(AA20:AA24) -> 0
B26: =E18/9 -> 0 | E26: Calculated FTE | F26: =F25/F18 ->  | AA26: =AA25-F25 -> 0
A29: Last Name, First Name | B29: Empl ID | C29: Position # | D29: Title | E29: Academic Year Rate (9 months) | F29: Max Summer Rate (1/3) | G29: EFORM REQUEST ID:
F30: =E30/3 -> 0 | G30: Contract #1 | L30: Contract #2 | Q30: Contract #3 | V30: Contract #4 | AA30: Contract Totals CK Figures
A31: Workload Description | C31: Effort for Assignment or Flat Rate | D31: Project ID/Cost Center | E31: SAMS Dates | F31: Allocation | G31: Start Date | H31: End Date | I31: Allocation | J31: Project ID/Cost Center | K31: Funding Dist% | L31: Start Date | M31: End Date | N31: Allocation | O31: Project ID/Cost Center | P31: Funding Dist% | Q31: Start Date | R31: End Date | S31: Allocation | T31: Project ID/Cost Center | U31: Funding Dist% | V31: Start Date | W31: End Date | X31: Allocation | Y31: Project ID/Cost Center | Z31: Funding Dist%
K32: =I32/SUM($I$32:$I$36) ->  | P32: =N32/SUM($N$32:$N$36) ->  | U32: =S32/SUM($S$32:$S$36) ->  | Z32: =X32/SUM($X$32:$X$36) -> 
K33: =I33/SUM($I$32:$I$36) ->  | P33: =N33/SUM($N$32:$N$36) ->  | S33: 0 | U33: =S33/SUM($S$32:$S$36) ->  | X33: 0 | Z33: =X33/SUM($X$32:$X$36) ->  | AA33: =I33+N33+S33+X33 -> 0
K34: =I34/SUM($I$32:$I$36) ->  | P34: =N34/SUM($N$32:$N$36) ->  | S34: 0 | U34: =S34/SUM($S$32:$S$36) ->  | X34: 0 | Z34: =X34/SUM($X$32:$X$36) ->  | AA34: =I34+N34+S34+X34 -> 0
P35: =N35/SUM($N$32:$N$36) ->  | S35: 0 | U35: =S35/SUM($S$32:$S$36) ->  | X35: 0 | Z35: =X35/SUM($X$32:$X$36) ->  | AA35: 0
A36: END | P36: =N36/SUM($N$32:$N$36) ->  | U36: =S36/SUM($S$32:$S$36) ->  | Z36: =X36/SUM($X$32:$X$36) -> 
A37: Monthly Salary Rate (reference for T/TT appointments) | E37: Total Allocation | F37: =SUM(F32:F36) -> 0 | I37: =SUM(I32:I36) -> 0 | K37: =SUM(K32:K36) ->  | N37: =SUM(N32:N36) -> 0 | P37: =SUM(P32:P36) ->  | S37: =SUM(S32:S36) -> 0 | U37: =SUM(U32:U36) ->  | X37: =SUM(X32:X36) -> 0 | Z37: =SUM(Z32:Z36) ->  | AA37: =SUM(AA32:AA36) -> 0
B38: =E30/9 -> 0 | E38: Calculated FTE | F38: =F37/F30 ->  | AA38: =AA37-F37 -> 0
A41: Last Name, First Name | B41: Empl ID | C41: Position # | D41: Title | E41: Academic Year Rate (9 months) | F41: Max Summer Rate (1/3) | G41: EFORM REQUEST ID:
F42: =E42/3 -> 0 | G42: Contract #1 | L42: Contract #2 | Q42: Contract #3 | V42: Contract #4 | AA42: Contract Totals CK Figures
A43: Workload Description | C43: Effort for Assignment or Flat Rate | D43: Project ID/Cost Center | E43: SAMS Dates | F43: Allocation | G43: Start Date | H43: End Date | I43: Allocation | J43: Project ID/Cost Center | K43: Funding Dist% | L43: Start Date | M43: End Date | N43: Allocation | O43: Project ID/Cost Center | P43: Funding Dist% | Q43: Start Date | R43: End Date | S43: Allocation | T43: Project ID/Cost Center | U43: Funding Dist% | V43: Start Date | W43: End Date | X43: Allocation | Y43: Project ID/Cost Center | Z43: Funding Dist%
K44: =I44/SUM($I$44:$I$48) ->  | P44: =N44/SUM($N$44:$N$48) ->  | U44: =S44/SUM($S$44:$S$48) ->  | Z44: =X44/SUM($X$44:$X$48) -> 
K45: =I45/SUM($I$44:$I$48) ->  | P45: =N45/SUM($N$44:$N$48) ->  | U45: =S45/SUM($S$44:$S$48) ->  | Z45: =X45/SUM($X$44:$X$48) ->  | AA45: =I45+N45+S45+X45 -> 0
P46: =N46/SUM($N$44:$N$48) ->  | U46: =S46/SUM($S$44:$S$48) ->  | Z46: =X46/SUM($X$44:$X$48) ->  | AA46: =I46+N46+S46+X46 -> 0
P47: =N47/SUM($N$44:$N$48) ->  | S47: 0 | U47: =S47/SUM($S$44:$S$48) ->  | X47: 0 | Z47: =X47/SUM($X$44:$X$48) ->  | AA47: 0
A48: END | P48: =N48/SUM($N$44:$N$48) ->  | U48: =S48/SUM($S$44:$S$48) ->  | Z48: =X48/SUM($X$44:$X$48) -> 
A49: Monthly Salary Rate (reference for T/TT appointments) | E49: Total Allocation | F49: =SUM(F44:F48) -> 0 | I49: =SUM(I44:I48) -> 0 | K49: =SUM(K44:K48) ->  | N49: =SUM(N44:N48) -> 0 | P49: =SUM(P44:P48) ->  | S49: =SUM(S44:S48) -> 0 | U49: =SUM(U44:U48) ->  | X49: =SUM(X44:X48) -> 0 | Z49: =SUM(Z44:Z48) ->  | AA49: =SUM(AA44:AA48) -> 0
B50: =E42/9 -> 0 | E50: Calculated FTE | F50: =F49/F42 ->  | AA50: =AA49-F49 -> 0
A53: Last Name, First Name | B53: Empl ID | C53: Position # | D53: Title | E53: Academic Year Rate (9 months) | F53: Max Summer Rate (1/3) | G53: EFORM REQUEST ID:
E54: 73386.2 | F54: =E54/3 -> 24462.06667 | G54: Contract #1 | L54: Contract #2 | Q54: Contract #3 | V54: Contract #4 | AA54: Contract Totals CK Figures
A55: Workload Description | C55: Effort for Assignment or Flat Rate | D55: Project ID/Cost Center | E55: SAMS Dates | F55: Allocation | G55: Start Date | H55: End Date | I55: Allocation | J55: Project ID/Cost Center | K55: Funding Dist% | L55: Start Date | M55: End Date | N55: Allocation | O55: Project ID/Cost Center | P55: Funding Dist% | Q55: Start Date | R55: End Date | S55: Allocation | T55: Project ID/Cost Center | U55: Funding Dist% | V55: Start Date | W55: End Date | X55: Allocation | Y55: Project ID/Cost Center | Z55: Funding Dist%
K56: =I56/SUM($I$56:$I$60) -> 0 | P56: =N56/SUM($N$56:$N$60) ->  | U56: =S56/SUM($S$56:$S$60) ->  | Z56: =X56/SUM($X$56:$X$60) -> 
F57: 6250 | I57: 6250 | K57: =I57/SUM($I$56:$I$60) -> 0.4921259843 | P57: =N57/SUM($N$56:$N$60) ->  | S57: 0 | U57: =S57/SUM($S$56:$S$60) ->  | X57: 0 | Z57: =X57/SUM($X$56:$X$60) ->  | AA57: =I57+N57+S57+X57 -> 6250
F58: 6250 | I58: 6250 | K58: 0.4921259843 | P58: =N58/SUM($N$56:$N$60) ->  | S58: 0 | U58: =S58/SUM($S$56:$S$60) ->  | X58: 0 | Z58: =X58/SUM($X$56:$X$60) ->  | AA58: =I58+N58+S58+X58 -> 6250
F59: 200 | I59: 200 | K59: 0.0157480315 | P59: =N59/SUM($N$56:$N$60) ->  | S59: 0 | U59: =S59/SUM($S$56:$S$60) ->  | X59: 0 | Z59: =X59/SUM($X$56:$X$60) ->  | AA59: 200
A60: END | K60: 0 | P60: =N60/SUM($N$56:$N$60) ->  | U60: =S60/SUM($S$56:$S$60) ->  | Z60: =X60/SUM($X$56:$X$60) -> 
A61: Monthly Salary Rate (reference for T/TT appointments) | E61: Total Allocation | F61: =SUM(F56:F60) -> 12700 | I61: =SUM(I56:I60) -> 12700 | K61: =SUM(K56:K60) -> 1 | N61: =SUM(N56:N60) -> 0 | P61: =SUM(P56:P60) ->  | S61: =SUM(S56:S60) -> 0 | U61: =SUM(U56:U60) ->  | X61: =SUM(X56:X60) -> 0 | Z61: =SUM(Z56:Z60) ->  | AA61: =SUM(AA56:AA60) -> 12700
B62: =E54/9 -> 8154.022222 | E62: Calculated FTE | F62: =F61/F54 -> 0.5191711793 | AA62: =AA61-F61 -> 0
A65: Last Name, First Name | B65: Empl ID | C65: Position # | D65: Title | E65: Academic Year Rate (9 months) | F65: Max Summer Rate (1/3) | G65: EFORM REQUEST ID:
F66: =E66/3 -> 0 | G66: Contract #1 | L66: Contract #2 | Q66: Contract #3 | V66: Contract #4 | AA66: Contract Totals CK Figures
A67: Workload Description | C67: Effort for Assignment or Flat Rate | D67: Project ID/Cost Center | E67: SAMS Dates | F67: Allocation | G67: Start Date | H67: End Date | I67: Allocation | J67: Project ID/Cost Center | K67: Funding Dist% | L67: Start Date | M67: End Date | N67: Allocation | O67: Project ID/Cost Center | P67: Funding Dist% | Q67: Start Date | R67: End Date | S67: Allocation | T67: Project ID/Cost Center | U67: Funding Dist% | V67: Start Date | W67: End Date | X67: Allocation | Y67: Project ID/Cost Center | Z67: Funding Dist%
K68: =I68/SUM($I$68:$I$72) ->  | P68: =N68/SUM($N$68:$N$72) ->  | U68: =S68/SUM($S$68:$S$72) ->  | Z68: =X68/SUM($X$68:$X$72) -> 
K69: =I69/SUM($I$68:$I$72) ->  | P69: =N69/SUM($N$68:$N$72) ->  | S69: 0 | U69: =S69/SUM($S$68:$S$72) ->  | X69: 0 | Z69: =X69/SUM($X$68:$X$72) ->  | AA69: =I69+N69+S69+X69 -> 0
P70: =N70/SUM($N$68:$N$72) ->  | S70: 0 | U70: =S70/SUM($S$68:$S$72) ->  | X70: 0 | Z70: =X70/SUM($X$68:$X$72) ->  | AA70: =I70+N70+S70+X70 -> 0
P71: =N71/SUM($N$68:$N$72) ->  | S71: 0 | U71: =S71/SUM($S$68:$S$72) ->  | X71: 0 | Z71: =X71/SUM($X$68:$X$72) ->  | AA71: 0
A72: END | P72: =N72/SUM($N$68:$N$72) ->  | U72: =S72/SUM($S$68:$S$72) ->  | Z72: =X72/SUM($X$68:$X$72) -> 
A73: Monthly Salary Rate (reference for T/TT appointments) | E73: Total Allocation | F73: =SUM(F68:F72) -> 0 | I73: =SUM(I68:I72) -> 0 | K73: =SUM(K68:K72) ->  | N73: =SUM(N68:N72) -> 0 | P73: =SUM(P68:P72) ->  | S73: =SUM(S68:S72) -> 0 | U73: =SUM(U68:U72) ->  | X73: =SUM(X68:X72) -> 0 | Z73: =SUM(Z68:Z72) ->  | AA73: =SUM(AA68:AA72) -> 0
B74: =E66/9 -> 0 | E74: Calculated FTE | F74: =F73/F66 ->  | AA74: =AA73-F73 -> 0
A77: Last Name, First Name | B77: Empl ID | C77: Position # | D77: Title | E77: Academic Year Rate (9 months) | F77: Max Summer Rate (1/3) | G77: EFORM REQUEST ID:
F78: =E78/3 -> 0 | G78: Contract #1 | L78: Contract #2 | Q78: Contract #3 | V78: Contract #4 | AA78: Contract Totals CK Figures
A79: Workload Description | C79: Effort for Assignment or Flat Rate | D79: Project ID/Cost Center | E79: SAMS Dates | F79: Allocation | G79: Start Date | H79: End Date | I79: Allocation | J79: Project ID/Cost Center | K79: Funding Dist% | L79: Start Date | M79: End Date | N79: Allocation | O79: Project ID/Cost Center | P79: Funding Dist% | Q79: Start Date | R79: End Date | S79: Allocation | T79: Project ID/Cost Center | U79: Funding Dist% | V79: Start Date | W79: End Date | X79: Allocation | Y79: Project ID/Cost Center | Z79: Funding Dist%
K80: =I80/SUM($I$80:$I$84) ->  | P80: =N80/SUM($N$80:$N$84) ->  | U80: =S80/SUM($S$80:$S$84) ->  | Z80: =X80/SUM($X$80:$X$84) -> 
K81: =I81/SUM($I$80:$I$84) ->  | P81: =N81/SUM($N$80:$N$84) ->  | S81: 0 | U81: =S81/SUM($S$80:$S$84) ->  | X81: 0 | Z81: =X81/SUM($X$80:$X$84) ->  | AA81: =I81+N81+S81+X81 -> 0
P82: =N82/SUM($N$80:$N$84) ->  | S82: 0 | U82: =S82/SUM($S$80:$S$84) ->  | X82: 0 | Z82: =X82/SUM($X$80:$X$84) ->  | AA82: =I82+N82+S82+X82 -> 0
P83: =N83/SUM($N$80:$N$84) ->  | S83: 0 | U83: =S83/SUM($S$80:$S$84) ->  | X83: 0 | Z83: =X83/SUM($X$80:$X$84) ->  | AA83: 0
A84: END | P84: =N84/SUM($N$80:$N$84) ->  | U84: =S84/SUM($S$80:$S$84) ->  | Z84: =X84/SUM($X$80:$X$84) -> 
A85: Monthly Salary Rate (reference for T/TT appointments) | E85: Total Allocation | F85: =SUM(F80:F84) -> 0 | I85: =SUM(I80:I84) -> 0 | K85: =SUM(K80:K84) ->  | N85: =SUM(N80:N84) -> 0 | P85: =SUM(P80:P84) ->  | S85: =SUM(S80:S84) -> 0 | U85: =SUM(U80:U84) ->  | X85: =SUM(X80:X84) -> 0 | Z85: =SUM(Z80:Z84) ->  | AA85: =SUM(AA80:AA84) -> 0
B86: =E78/9 -> 0 | E86: Calculated FTE | F86: =F85/F78 ->  | AA86: =AA85-F85 -> 0
A89: Last Name, First Name | B89: Empl ID | C89: Position # | D89: Title | E89: Academic Year Rate (9 months) | F89: Max Summer Rate (1/3) | G89: EFORM REQUEST ID:
F90: =E90/3 -> 0 | G90: Contract #1 | L90: Contract #2 | Q90: Contract #3 | V90: Contract #4 | AA90: Contract Totals CK Figures
A91: Workload Description | C91: Effort for Assignment or Flat Rate | D91: Project ID/Cost Center | E91: SAMS Dates | F91: Allocation | G91: Start Date | H91: End Date | I91: Allocation | J91: Project ID/Cost Center | K91: Funding Dist% | L91: Start Date | M91: End Date | N91: Allocation | O91: Project ID/Cost Center | P91: Funding Dist% | Q91: Start Date | R91: End Date | S91: Allocation | T91: Project ID/Cost Center | U91: Funding Dist% | V91: Start Date | W91: End Date | X91: Allocation | Y91: Project ID/Cost Center | Z91: Funding Dist%
K92: =I92/SUM($I$92:$I$96) ->  | P92: =N92/SUM($N$92:$N$96) ->  | U92: =S92/SUM($S$92:$S$96) ->  | Z92: =X92/SUM($X$92:$X$96) -> 
K93: =I93/SUM($I$92:$I$96) ->  | P93: =N93/SUM($N$92:$N$96) ->  | S93: 0 | U93: =S93/SUM($S$92:$S$96) ->  | X93: 0 | Z93: =X93/SUM($X$92:$X$96) ->  | AA93: =I93+N93+S93+X93 -> 0
P94: =N94/SUM($N$92:$N$96) ->  | S94: 0 | U94: =S94/SUM($S$92:$S$96) ->  | X94: 0 | Z94: =X94/SUM($X$92:$X$96) ->  | AA94: =I94+N94+S94+X94 -> 0
P95: =N95/SUM($N$92:$N$96) ->  | S95: 0 | U95: =S95/SUM($S$92:$S$96) ->  | X95: 0 | Z95: =X95/SUM($X$92:$X$96) ->  | AA95: 0
A96: END | P96: =N96/SUM($N$92:$N$96) ->  | U96: =S96/SUM($S$92:$S$96) ->  | Z96: =X96/SUM($X$92:$X$96) -> 
A97: Monthly Salary Rate (reference for T/TT appointments) | E97: Total Allocation | F97: =SUM(F92:F96) -> 0 | I97: =SUM(I92:I96) -> 0 | K97: =SUM(K92:K96) ->  | N97: =SUM(N92:N96) -> 0 | P97: =SUM(P92:P96) ->  | S97: =SUM(S92:S96) -> 0 | U97: =SUM(U92:U96) ->  | X97: =SUM(X92:X96) -> 0 | Z97: =SUM(Z92:Z96) ->  | AA97: =SUM(AA92:AA96) -> 0
B98: =E90/9 -> 0 | E98: Calculated FTE | F98: =F97/F90 ->  | AA98: =AA97-F97 -> 0
A101: Revised 2/22/22

Sheet Notes (hidden)
A1: Notes
A2: Position number for new hires can be 'NEW"
A3: Policy: payment must be made during the time the money is earned
A4: maintain monthly caps - addresses tax implication and ensures reasonable effort
A5: Not allowed to spread beyond assignment period - allows for cleaner audit trail with multiple positions

Sheet Macro Source - Do not edit (hidden)
A3: BLANK GENERIC ROW:
K4: =I4/SUM($I$6:$I$14) ->  | P4: =N4/SUM($N$6:$N$14) ->  | S4: 0 | U4: =S4/SUM($S$6:$S$14) ->  | X4: 0 | Z4: =X4/SUM($X$6:$X$14) ->  | AA4: =I4+N4+S4+X4 -> 0
A9: NEW SECTION:
A10: Last Name, First Name | B10: Empl ID | C10: Position # | D10: Title | E10: Academic Year Rate (9 months) | F10: Max Summer Rate (1/3) | G10: EFORM REQUEST ID:
F11: =E11/3 -> 0 | G11: Contract #1 | L11: Contract #2 | Q11: Contract #3 | V11: Contract #4 | AA11: Contract Totals CK Figures
A12: Workload Description | C12: Effort for Assignment or Flat Rate | D12: Project ID/Cost Center | E12: SAMS Dates | F12: Allocation | G12: Start Date | H12: End Date | I12: Allocation | J12: SPEEDTYPE | K12: Funding Dist% | L12: Start Date | M12: End Date | N12: Allocation | O12: SPEEDTYPE | P12: Funding Dist% | Q12: Start Date | R12: End Date | S12: Allocation | T12: SPEEDTYPE | U12: Funding Dist% | V12: Start Date | W12: End Date | X12: Allocation | Y12: SPEEDTYPE | Z12: Funding Dist%
K13: =I13/SUM(I13:I17) -> 
K14: =I14/SUM($I$13:$I$17) ->  | P14: =N14/SUM($N$13:$N$17) ->  | S14: 0 | U14: =S14/SUM($S$13:$S$17) ->  | X14: 0 | Z14: =X14/SUM($X$13:$X$17) ->  | AA14: =I14+N14+S14+X14 -> 0
K15: =I15/SUM($I$13:$I$17) ->  | P15: =N15/SUM($N$13:$N$17) ->  | S15: 0 | U15: =S15/SUM($S$13:$S$17) ->  | X15: 0 | Z15: =X15/SUM($X$13:$X$17) ->  | AA15: =I15+N15+S15+X15 -> 0
K16: =I16/SUM($I$13:$I$17) ->  | P16: =N16/SUM($N$13:$N$17) ->  | S16: 0 | U16: =S16/SUM($S$13:$S$17) ->  | X16: 0 | Z16: =X16/SUM($X$13:$X$17) ->  | AA16: 0
A17: END
A18: Monthly Salary Rate (reference for T/TT appointments) | E18: Total Allocation | F18: =SUM(F13:F17) -> 0 | I18: =SUM(I13:I17) -> 0 | K18: =SUM(K13:K17) ->  | N18: =SUM(N13:N17) -> 0 | P18: =SUM(P13:P17) ->  | S18: =SUM(S13:S17) -> 0 | U18: =SUM(U13:U17) ->  | X18: =SUM(X13:X17) -> 0 | Z18: =SUM(Z13:Z17) ->  | AA18: =SUM(AA13:AA17) -> 0
B19: =E11/9 -> 0 | E19: Calculated FTE | F19: =F18/F11 ->  | AA19: =AA18-F18 -> 0
